Cogmind - Beta 16 @@@ ROGUE MODE // 2025.10.26 @ 13:06:28 Player: Memoir Result: Destroyed by D-53 Grenadier with Mini Grenade Launcher Performance ------------- Evolutions (1) 500 Regions Visited (3) 600 Robots Destroyed (21) 105 Value Destroyed (459) 459 Prototype IDs (4) 80 Alien Tech Used (0) 0 Bonus (0) 0 TOTAL SCORE: 1744 Bonus ------- None Cogmind --------- Core Integrity 0/400 Matter 300/300 Energy 265/265 System Corruption 0% Temperature Cool (0) Movement Core (2500) Ox49 Location -9/Mines Parts ------- > --- POWER (2) -------- Improved Ion Engine > --- PROPULSION (3) --- (None) > --- UTILITY (2) ------ Cargo Storage Unit > --- WEAPON (2) ------- Pulse Rifle > --- INVENTORY (30) --- Sensor Array Shield Generator Field Recycling Unit (0) Medium Laser Particle Cannon Light Assault Rifle Mini Grenade Launcher Datajack Mining Laser Peak State ------------ > --- POWER ------------ Improved Ion Engine Improved Ion Engine > --- PROPULSION ------- Wheel Wheel Compact Wheel > --- UTILITY ---------- Cargo Storage Unit > --- WEAPON ----------- Pulse Rifle Beam Cannon > --- INVENTORY -------- Sensor Array Field Recycling Unit Medium Laser Particle Cannon Light Assault Rifle Mini Grenade Launcher Mining Laser [Rating: 14] Favorites ----------- Power Ion Engine Engine Ion Engine Propulsion Aluminum Leg Leg Aluminum Leg Wheel Wheel Utility Cargo Storage Unit Storage Cargo Storage Unit Processor Transport Network Coupler Weapon Medium Laser Energy Gun Medium Laser Energy Cannon Beam Cannon Ballistic Gun Light Assault Rifle Ballistic Cannon Flak Cannon Launcher Grenade Launcher Build | -11 -10 -9 -9 ------- Run | Yrd Mat Mat Min Slots Evolved 2 | . . 2 . Power 1 | . . 1 . Propulsion 1 | . . 1 . Utility . | . . . . Weapon . | . . . . Parts Attached 26 | 5 4 13 4 Power 6 | 1 . 2 3 Engine 6 | 1 . 2 3 Core . | . . . . Reactor . | . . . . Propulsion 8 | 2 . 5 1 Treads . | . . . . Leg 4 | 2 . 2 . Wheel 4 | . . 3 1 Hover . | . . . . Flight . | . . . . Utility 4 | 1 2 1 . Device . | . . . . Storage 3 | 1 1 1 . Processor 1 | . 1 . . Hackware . | . . . . Protection . | . . . . Artifact . | . . . . Weapon 8 | 1 2 5 . Energy Gun 2 | 1 . 1 . Energy Cannon 1 | . . 1 . Ballistic Gun 1 | . 1 . . Ballistic Cannon 2 | . . 2 . Launcher 2 | . 1 1 . Special Weapon . | . . . . Impact Weapon . | . . . . Slashing Weapon . | . . . . Piercing Weapon . | . . . . Special Melee Weapon . | . . . . Unidentified Prototypes 1 | . . 1 . Parts Lost 14 | . . 9 5 Power 4 | . . 3 1 Propulsion 6 | . . 3 3 Utility . | . . . . Weapon 4 | . . 3 1 Highest Loss Streak 5 | . . 5 5 To Critical Strikes . | . . . . Average Backups 5 | 1 3 5 8 Power . | . 1 . . Propulsion . | . . . . Utility 1 | . . 1 2 Weapon 3 | . 1 3 4 Tool/Special . | . . . . Unused Backups 7 | . 1 . 6 Power . | . . . . Propulsion . | . . . . Utility 4 | . 1 . 3 Weapon 2 | . . . 2 Tool/Special 1 | . . . 1 Average Slot Usage (%) 76 | . 97 68 83 Engine 14 | . 13 12 18 Leg 18 | . 28 21 . Wheel 6 | . . 1 32 Storage 11 | . 14 11 11 Processor 2 | . 11 . . Energy Gun 10 | . 14 9 11 Energy Cannon 3 | . . 2 10 Ballistic Cannon 2 | . . 3 . Launcher 6 | . 13 6 . Peak Build Rating 14 | 5 7 12 14 Average Rating 9 | 3 6 8 13 On Entrance 4 | . 5 7 6 Avg Prop Armor Cover (%) . | . . . . Naked Turns . | . . . . Heaviest Build 160 | 12 30 158 160 Greatest Support 42 | 20 20 42 42 Greatest Overweight (x) 49 | . 1 48 49 Average Overweight (x) 3 | . . 6 4 Largest Inventory Capacity 30 | 8 15 30 30 Average Capacity 25 | 6 10 29 30 Most Carried 9 | 5 5 9 9 Average Carried 5 | 1 3 5 8 Final Capacity 30 | 8 15 30 30 Final Carried 9 | 2 4 8 9 Class Distribution -------------------- 76% | Hauler-Mutant 23% | Mutant Dominant Class ---------------- Mutant | -10/Materials Hauler-Mutant | -9/Materials Hauler-Mutant | -9/Mines Resources | -11 -10 -9 -9 ----------- Run | Yrd Mat Mat Min Matter Collected 619 | 168 56 315 80 Remotely . | . . . . Salvage Created 677 | . 218 446 13 Parts 31 | . 15 14 2 Haulers Intercepted 1 | . 1 . . Recyclers Shooed 3 | . 1 2 . Parts Field Recycled . | . . . . Retrieved Matter . | . . . . Parts Self-Destructed . | . . . . Prevented . | . . . . Parts Restored . | . . . . Kills | -11 -10 -9 -9 ------- Run | Yrd Mat Mat Min Combat Hostiles Destroyed 12 | . 7 5 . Guns 3 | . 2 1 . Cannons 2 | . . 2 . AOE 7 | . 5 2 . Classes Destroyed 8 | . 5 3 . Worker 2 | . . 1 1 Builder 1 | . . 1 . Hauler 1 | . 1 . . Recycler 4 | . 1 3 . Watcher 1 | . 1 . . Swarmer 3 | . 3 . . Grunt 8 | . 4 4 . Sentry 1 | . . 1 . Best Kill Streak 4 | . 4 2 1 Combat Bots Only 3 | . 3 2 . Max Kills in Single Turn 2 | . 2 2 1 Gunslinging . | . . . . Exploded 2 | . 2 2 . Melee . | . . . . Uniques/NPCs Destroyed . | . . . . Combat | -11 -10 -9 -9 -------- Run | Yrd Mat Mat Min Hostile Shots Fired 171 | . 24 132 15 Missed 48 | . 11 34 3 Hits 123 | . 13 98 12 Melee 1 | . . . 1 Projectile 122 | . 13 98 11 AOE 11 | . . . 11 Critical Strikes 1 | . . . 1 Damage Taken 1973 | . 183 1232 558 Core 430 | . 19 255 156 Absorbed by Shields . | . . . . Regen/Repaired (Parts) 55 | . 55 . . Core Remaining (%) 96 | 100 92 . . Volleys Fired 43 | . 17 20 6 Largest 2 | . 2 2 2 Hottest 123 | . 80 123 123 Shots Fired 78 | . 28 38 12 Gun 41 | . 17 18 6 Cannon 23 | . . 17 6 Launcher 14 | . 11 3 . Special . | . . . . Kinetic 6 | . . 6 . Thermal 58 | . 17 29 12 Explosive 14 | . 11 3 . Electromagnetic . | . . . . Robot Hit Streak 9 | . 5 9 7 Robot Miss Streak 5 | . 3 5 2 Penetration Max . | . . . . Secondary Targets . | . . . . Shots Hit Robots 45 | . 13 24 8 Core Hits 34 | . 16 15 3 Critical Kills . | . . . . Critical Parts Destroyed . | . . . . Critical Strikes 2 | . 1 . 1 Burn 2 | . 1 . 1 Melee Attacks . | . . . . Impact . | . . . . Slashing . | . . . . Piercing . | . . . . Sneak Attacks . | . . . . Combat Hostiles . | . . . . Follow-up Attacks . | . . . . Damage Inflicted 1462 | . 646 680 136 Guns 400 | . 127 189 84 Cannons 244 | . . 192 52 Explosions 804 | . 519 285 . Melee . | . . . . Ramming 14 | . . 14 . Kinetic 70 | . . 70 . Thermal 750 | . 127 487 136 Explosive 628 | . 519 109 . Electromagnetic . | . . . . Impact . | . . . . Slashing . | . . . . Piercing . | . . . . Highest Corruption . | . . . . Average Corruption . | . . . . Corruption Purged . | . . . . Corruption Blocked . | . . . . Overload Shots . | . . . . Overflow Damage 94 | . 15 79 . Projectiles . | . . . . Explosions 94 | . 15 79 . Melee . | . . . . Knockbacks 1 | . . 1 . Impact . | . . . . Kinetic 1 | . . 1 . Secondary . | . . . . Self-Inflicted Damage 164 | . 60 104 . Shots 4 | . 2 2 . Rammed 1 | . . 1 . Targets Rammed 6 | . . 6 . Kicked 5 | . . 5 . Crushed . | . . . . Highest Temperature 220 | . 84 135 220 Average Temperature 45 | . 31 37 78 Received Heat Transfer 624 | . 18 579 27 Siege Activations . | . . . . Martial Activations . | . . . . Shielding Activations . | . . . . Robots Disrupted . | . . . . Combat Hostiles . | . . . . Robots Corrupted . | . . . . Combat Hostiles . | . . . . Parts Fried . | . . . . Impact Corruptions . | . . . . Robots Melted . | . . . . Combat Hostiles . | . . . . Parts Melted . | . . . . Heat Transferred 1667 | . 444 853 370 Parts Sabotaged . | . . . . Parts Stolen . | . . . . Parts Stripped . | . . . . Power Chain Reactions . | . . . . Alert | -11 -10 -9 -9 ------- Run | Yrd Mat Mat Min Maximum Alert Level . | . . . . Low Security (%) 100 | 100 100 100 100 Level 1 . | . . . . Level 2 . | . . . . Level 3 . | . . . . Level 4 . | . . . . Level 5 . | . . . . High Security . | . . . . Max Security . | . . . . Peak Influence 181 | . 181 58 11 Initial 24 | . . 24 1 Average 23 | . 84 11 . Influence Increases 590 | . 306 269 15 Destroy 0b10 Robot/C 240 | . 140 100 . Destroy 0b10 Robot/NC 45 | . 15 25 5 Destroy Leader 64 | . 34 30 . Successful Hack 52 | . 14 28 10 Disable Machine 75 | . 45 30 . Destroy Structure 84 | . 43 41 . Lose Combat Pursuer 30 | . 15 15 . Influence Decreases 590 | . 248 321 21 Entered New Map 39 | . . 34 5 Time Decay 508 | . 248 244 16 Lost Part 43 | . . 43 . Squads Dispatched 5 | . 3 2 . Investigation 1 | . . 1 . Extermination . | . . . . Reinforcement 4 | . 3 1 . Assault . | . . . . Garrison . | . . . . Intercept . | . . . . Searches Triggered . | . . . . Construction Impeded . | . . . . Haulers Reinforced . | . . . . Active Scanning Responses . | . . . . Cargo Convoy Interrupts . | . . . . Stealth | -11 -10 -9 -9 --------- Run | Yrd Mat Mat Min Distress Signals 3 | . 1 2 . Communications Jammed . | . . . . Distress Signals . | . . . . Times Spotted 26 | . 11 7 8 Peak Tracking Total 6 | . 3 2 6 Tactical Retreats 2 | . 1 1 . Traps | -11 -10 -9 -9 ------- Run | Yrd Mat Mat Min Traps Triggered 1 | . . 1 . Indirectly . | . . . . Trap Hack Attempts . | . . . . Triggered . | . . . . Disarmed . | . . . . Reprogrammed 6 | . 6 . . Reused . | . . . . Traps Extracted . | . . . . Installed . | . . . . Triggered . | . . . . Machines | -11 -10 -9 -9 ---------- Run | Yrd Mat Mat Min Machines Disabled 5 | . 3 2 . Max in Single Turn 2 | . 1 2 . Machines Repaired . | . . . . Machines Dismantled . | . . . . Machines Sabotaged . | . . . . Overloaded Fab Kills . | . . . . Hacking | -11 -10 -9 -9 --------- Run | Yrd Mat Mat Min Machines Accessed 11 | . 6 4 1 Terminals 10 | . 5 4 1 Fabricators . | . . . . Repair Stations 1 | . 1 . . Recycling Units . | . . . . Scanalyzers . | . . . . Garrison Access . | . . . . Total Hacks 35 | . 16 14 5 Successful 20 | . 11 7 2 Failed 15 | . 5 7 3 Catastrophic 2 | . . 2 . Database Lockouts . | . . . . Manual . | . . . . Terminals 33 | . 14 14 5 Fabricators . | . . . . Repair Stations 2 | . 2 . . Recycling Units . | . . . . Scanalyzers . | . . . . Garrison Access . | . . . . Terminal Hacks 18 | . 9 7 2 Record 9 | . 4 5 . Robot Analysis 1 | . 1 . . Prototype ID Bank 1 | . . 1 . Alert Level 1 | . 1 . . Locate Traps 1 | . 1 . . Reprogram Traps 1 | . 1 . . Dispatch Records 1 | . . 1 . Maintenance Status 1 | . 1 . . Investigation Status 1 | . . . 1 Zone Layout 1 | . . . 1 Fabricator Hacks . | . . . . Repair Station Hacks 2 | . 2 . . Scan Component 1 | . 1 . . Repair 1 | . 1 . . Recycling Unit Hacks . | . . . . Scanalyzer . | . . . . Garrison Access Hacks . | . . . . Unauthorized Hacks . | . . . . Terminals . | . . . . Fabricators . | . . . . Repair Stations . | . . . . Recycling Units . | . . . . Scanalyzers . | . . . . Garrison Access . | . . . . Data Cores Recovered . | . . . . Used . | . . . . Hacking Detections 8 | . 3 4 1 Full Trace Events 2 | . . 2 . Feedback Events . | . . . . Feedback Blocked . | . . . . Robot Schematics Acquired . | . . . . Robots Built . | . . . . Authchips . | . . . . Time . | . . . . Total Robot Build Rating . | . . . . Part Schematics Acquired . | . . . . Parts Built . | . . . . Authchips . | . . . . Time . | . . . . Total Part Build Rating . | . . . . Part Studies Acquired . | . . . . Parts Repaired 1 | . 1 . . Time 26 | . 26 . . Parts Recycled . | . . . . Recycled Matter . | . . . . Retrieved Matter . | . . . . Retrieved Components . | . . . . Parts Scanalyzed . | . . . . Part Schematics Acquired . | . . . . Parts Damaged . | . . . . Bothacking | -11 -10 -9 -9 ------------ Run | Yrd Mat Mat Min Used RIF Installer . | . . . . Robots Hacked . | . . . . Non-combat . | . . . . Combat . | . . . . Robot Hacks Applied . | . . . . Relay Couplers Released . | . . . . Fabnet Peak Effective % . | . . . . Robots Rewired . | . . . . Allies Hacked . | . . . . Hacks Repelled . | . . . . Allies | -11 -10 -9 -9 -------- Run | Yrd Mat Mat Min Total Allies . | . . . . Largest Group . | . . . . Highest-Rated Group . | . . . . Highest-Rated Ally . | . . . . Total Orders . | . . . . Ally Attacks . | . . . . Total Damage . | . . . . Kills . | . . . . Allies Corrupted . | . . . . Allies Melted . | . . . . Intel | -11 -10 -9 -9 ------- Run | Yrd Mat Mat Min Active Infowar (turns) 612 | . 514 98 . T.N.C. 612 | . 514 98 . Robot Analysis Total 1 | . 1 . . Derelict Logs Recovered . | . . . . Drone Launches . | . . . . Drone Recoveries . | . . . . Exploration | -11 -10 -9 -9 ------------- Run | Yrd Mat Mat Min Turns Passed 3174 | 38 608 1946 582 Spaces Moved 1089 | 26 326 364 373 Core 14 | 6 . 7 1 Treads . | . . . . Legs 652 | 20 326 306 . Wheels 423 | . . 51 372 Hover . | . . . . Flight . | . . . . Fastest Speed 50 | 50 120 138 138 Average Speed 263 | 103 148 492 152 Slowest Speed 2500 | 120 190 2450 2500 Overloaded Moves . | . . . . Propulsion Burnouts . | . . . . Robots Hopped . | . . . . Potential Cave-ins . | . . . . Cave-ins Triggered . | . . . . Exploration Rate (%) 31 | 3 40 28 56 Regions Visited 3 Branch Regions 1 Pre-discovered Areas . | . . . . Known Exits Taken . | . . . . Unknown Exits Taken 3 | 1 1 1 . Scrap Searched 2 | . . . 2 Spaces Dug . | . . . . Terrain Destroyed 82 | . 44 38 . Melee . | . . . . Projectile . | . . . . AOE 82 | . 44 38 . Terrain Rammed . | . . . . Walls Destroyed . | . . . . Machines Disabled . | . . . . Actions | -11 -10 -9 -9 --------- Run | Yrd Mat Mat Min Total 1279 | 37 423 425 394 Wait 67 | . 67 . . Move 1086 | 25 325 363 373 Hop . | . . . . Pick Up 37 | 7 7 16 7 Fast Attach . | . . . . Attach 23 | 5 3 11 4 Detach 2 | . . 2 . Swap 8 | . 2 4 2 Drop 7 | . 2 3 2 Fire 43 | . 17 20 6 Melee . | . . . . Ram 1 | . . 1 . Kick 5 | . . 5 . Crush . | . . . . Escape Stasis . | . . . . Rewire . | . . . . Trap . | . . . . Miscellaneous . | . . . . Route ------- -11/Scrapyard -10/Materials (discovered 2 exits: *Mat / [*Min]) -9/Materials -9/Mines History --------- Turn | Location | Event 5 | -11/Scrapyard | Discovered new exit (range 16) 39 | -11/Scrapyard | Entered Materials 306 | -10/Materials | Build established: Mutant 335 | -10/Materials | Discovered new exit (range 16) 377 | -10/Materials | Repaired Ion Engine 622 | -10/Materials | Discovered new exit (range 10) 647 | -10/Materials | Entered another Materials area 647 | -9/Materials | Evolved 2 slots: Power x1, Propulsion x1 1053 | -9/Materials | Build established: Hauler-Mutant 1773 | -9/Materials | Lost 4 parts (2p1n1w) 2134 | -9/Materials | Core integrity fell below 50% 2176 | -9/Materials | Lost 5 parts (1p2n2w) 2572 | -9/Materials | Discovered new exit (range 7) 2593 | -9/Materials | Entered Mines 2649 | -9/Mines | Found DCF Scrap (11 items) 2665 | -9/Mines | Met a Derelict bent on vengeance 2692 | -9/Mines | Joined a pair of Derelicts in attacking an 0b10 outpost 3119 | -9/Mines | Assembled infested the area 3124 | -9/Mines | Assisted by a Guerilla fighting off Assembled 3161 | -9/Mines | Core integrity fell below 20% 3175 | -9/Mines | Destroyed by D-53 Grenadier with Mini Grenade Launcher Last Messages --------------- come on!" 03145_ J3-XO4(h) destroyed. 03145_ T-07 Excavator destroyed. 03151_ K-01 Serf destroyed. 03153_ Imp. Ion Engine destroyed. 03155_ Com. Wheel destroyed. 03155_ D-53 Grenadier destroyed. 03156_ The unstable cave ceiling collapses. 03157_ as-14666 destroyed. 03157_ as-09345 destroyed. 03159_ The unstable cave ceiling collapses. 03159_ Targeting Computer crushed. 03160_ The unstable cave ceiling collapses. 03160_ Wheel destroyed. 03161_ Beam Cannon destroyed. 03162_ as-19410 destroyed. 03167_ Wheel destroyed. 03169_ The unstable cave ceiling collapses. 03169_ as-99408 destroyed. 03173_ The unstable cave ceiling collapses. Map ----- +----------------------------------------------------+ | #???????????????????????????? | | ### """ #???????????????????????????? | | #### """ #????????????????????????????? | | %!## """ ##??????????????????#?????????? | | ##[### ##???????????????????# ????????? | | ### #?## #??######????????????? ###?????? | | # ##?# #??#### ##?##"!%"##????????????? #?????? | | ####??# #?????## #??#!!%=!!#????????????## ####??? | | ??????# ######## #??# [![ #???????????## ##?? | | ??????# ##### !==##??????????## ##? | | ??????# ######## # #++####???????### #? | | ????### #?????## ##?????## #? | | #####T# #?????# #?????# #? | | # #?????# = =% #?????# ##? | | # #?????#" ][% ####### #?? | | # #??????#%# # = #?? | | # #??????#!# ### | | #########??????# # ######### ## ## | | ????????######## # ##???????###### | | #######?# ## d ##???????????## | | # ### ########??# ##??????????## | | #?????????## #?????????## | | ## #??????????# # #????????## | | ### #??????????# #????????# | | # ###?# #??????????# ##????????# | | # ###???# #??????????# @ #????????# | | # ####### #??????????# ##????????# | | # ## ##?????????# ##?????????# | | ?????????????????????# #??????????# | | ????????????????????### ##??????????# | | ????????????????????# #???????????## ### | | ????????????????????# ### #????????????###??## | | ?????????????????????!??# ##??????????????????### | | ????????????????????#???# #?????????????????????? | | ????????????????????????# #?????????????????????? | | ????????????????????????# #?????????????????????? | | ????????????????????????#$ #?????????????????????? | | ????????????????????????# #?????????????????????? | | ????????????????????????# #?????????????????????? | | ????????????????????????# #?????????????????????? | | ????????????????????????# ?????????????????????? | | ????????????????????????# ??????????????????#### | | ????????????????????????#####????????????????## # | | ????????????????????????????????????????????## | | ????????????????????????????????????????????# | | ????????????????????????????????????????????# | | ????????????????????????????????????????????# | | ????????????????????????????????????????????# | | ????????????????????????????????????????????## | | ?????????????????????????????????????????????## | +----------------------------------------------------+ Best States ------------- Heat Dissipation 28 Energy Generation 19 Energy Capacity 430 Matter Stores 300 Matter Capacity 300 Sight Range 16 Terrain Scan Density 10 Evasion (%) 55 Item Schematics ----------------- None Robot Schematics ------------------ None Fabricated ------------ Nothing Repaired ---------- Ion Engine | 8% | -10/Materials Studied --------- None Alien Tech Used ----------------- None Achievements -------------- Tank Challenges ------------ None Game ------ Seed SchematicInsulatedCompactor Manual? 0 Play Time 00:19:44 Cumulative 6.0 hours Start 2025.10.26 @ 11:19:17 End 2025.10.26 @ 13:06:28 Sessions 1 Manual Loads 0 Difficulty Rogue Special Mode None Game No. 25 Rogue 25 Adventurer 0 Explorer 0 Win Type - Total 0 Types 0/0/0/0/0/0/0/0/0/0 Lore% 6 Gallery% 12 Achievement% 11 Wizard Run 0 Options --------- Layout 1 ASCII 0 Keyboard 0 Movement Mouse Keybinds 0 Fullscreen 1 Font 24/Smallcaps Map View 50x35 Zoom Use 0% Tactical HUD 1 Map Filters NONE Filters NONE Steam 1 RUN: 8dec6211-d3c5-4920-a85a-63a290257916